Cogmind - Beta 11 X8 @@@ ROGUE MODE // 2022.02.15 @ 20:36:16 Player: maxwell Result: Self-destructed Performance ------------- Evolutions (5) 2500 Regions Visited (13) 2600 Robots Destroyed (155) 775 Value Destroyed (5537) 5537 Prototype IDs (28) 560 Alien Tech Used (0) 0 Bonus (200) 200 TOTAL SCORE: 12172 Bonus ------- High Alert Combat Kills 240 Follower Combat Kills 304 Met Warlord at Base 500 MAIN.C Attacked Warlord 500 Warlord Defense Kill 372 Friendly Fire -1716 Cogmind --------- Core Integrity 865/1000 Matter 300/300 Energy 1050/1050 System Corruption 4% Temperature Warm (197) Movement Rolling (235) Ox9 Location -5/Warlord Parts ------- > --- POWER (2) -------- Vortex Chain Reactor > --- PROPULSION (2) --- Compact Wheel > --- UTILITY (10) ----- Huge Storage Unit Energy Well Active Sensor Suite Advanced Target Analyzer Improved Weapon Shielding Advanced Remote Shield > --- WEAPON (3) ------- Heavy Gatling Laser Vortex Rifle > --- INVENTORY (25) --- Heavy Antimatter Reactor Advanced Cooling System Triangulator Improved Signal Interpreter Advanced Targeting Computer Improved Transmission Jammer Experimental Cloaking Device Hardened Medium Armor Plating Improved Focal Shield Improved Thermal Defense Suite Dynamic Insulation System System Backup Module Precision Beam Rifle Heavy Gatling Laser PD Laser Heavy Plasma Cannon Rocket Array RU-N14's Throwing Claymores (10) RU-N14's Throwing Claymores (10) RU-N14's Throwing Claymores (10) RU-N14's Throwing Claymores (10) Peak State ------------ > --- POWER ------------ Vortex Chain Reactor > --- PROPULSION ------- Wheel Compact Wheel > --- UTILITY ---------- Advanced Cooling System Huge Storage Unit Energy Well Active Sensor Suite Tactical Coordination Suite Advanced Target Analyzer Improved Weapon Shielding Advanced Remote Shield > --- WEAPON ----------- Heavy Gatling Laser Heavy Gatling Laser Vortex Rifle > --- INVENTORY -------- Improved Deuterium Engine Advanced Cooling System Triangulator Improved Signal Interpreter Advanced Targeting Computer Improved Transmission Jammer Experimental Cloaking Device Hardened Medium Armor Plating Improved Focal Shield Improved Thermal Defense Suite Dynamic Insulation System System Backup Module Precision Beam Rifle Precision Beam Rifle Heavy Gatling Laser Vortex Rifle PD Laser Heavy Plasma Cannon Rocket Array RU-N14's Throwing Claymores RU-N14's Throwing Claymores RU-N14's Throwing Claymores RU-N14's Throwing Claymores [Rating: 121] Favorites ----------- Power Heavy Antimatter Reactor Engine Improved Deuterium Engine Power Core Light Nuclear Core Reactor Heavy Antimatter Reactor Propulsion Wheel Treads Light Treads Wheel Wheel Utility Huge Storage Unit Device Active Sensor Suite Storage Huge Storage Unit Processor Advanced Target Analyzer Hackware Ghost Barrier Protection Improved Propulsion Shielding Weapon Heavy Gatling Laser Energy Gun Heavy Gatling Laser Energy Cannon Heavy Plasma Cannon Ballistic Gun Light Assault Rifle Launcher Rocket Array Special Weapon RU-N14's Throwing Claymores Slashing Weapon Chainsword Build | -11 -10 -9 -8 -7 -6 -6 -6 -6 -5 -5 -5 -5 -5 ------- Run | Scr Mat Mat Mat Fac Fac Low Low Zio Pro Fac Upp Upp War Slots Evolved 10 | . . 2 2 2 2 . . . . 2 . . . Power 1 | . . . . . . . . . . 1 . . . Propulsion . | . . . . . . . . . . . . . . Utility 8 | . . 2 2 2 2 . . . . . . . . Weapon 1 | . . . . . . . . . . 1 . . . Parts Attached 190 | 6 9 14 20 75 11 1 5 4 10 6 7 8 14 Power 19 | 1 . 2 4 9 . . . . . 1 1 . 1 Engine 12 | 1 . 2 3 5 . . . . . . 1 . . Core 4 | . . . 1 3 . . . . . . . . . Reactor 3 | . . . . 1 . . . . . 1 . . 1 Propulsion 24 | 2 3 . 6 10 1 . . . 1 1 . . . Treads 10 | 2 1 . 4 3 . . . . . . . . . Leg . | . . . . . . . . . . . . . . Wheel 14 | . 2 . 2 7 1 . . . 1 1 . . . Hover . | . . . . . . . . . . . . . . Flight . | . . . . . . . . . . . . . . Utility 83 | 1 3 6 8 33 7 1 3 1 6 1 1 5 7 Device 40 | . . 3 3 15 3 1 3 . 4 . . 5 3 Storage 9 | 1 2 2 . . . . . 1 1 . . . 2 Processor 12 | . . . 3 8 . . . . . . . . 1 Hackware 1 | . . . . . . . . . . . . . 1 Protection 21 | . 1 1 2 10 4 . . . 1 1 1 . . Artifact . | . . . . . . . . . . . . . . Weapon 64 | 2 3 6 2 23 3 . 2 3 3 3 5 3 6 Energy Gun 35 | . . 2 1 15 2 . 1 1 2 2 2 2 5 Energy Cannon 8 | . . 3 . . 1 . . . . 1 1 1 1 Ballistic Gun 8 | 2 3 1 1 1 . . . . . . . . . Ballistic Cannon . | . . . . . . . . . . . . . . Launcher 10 | . . . . 5 . . 1 1 1 . 2 . . Special Weapon 1 | . . . . . . . . 1 . . . . . Impact Weapon . | . . . . . . . . . . . . . . Slashing Weapon 2 | . . . . 2 . . . . . . . . . Piercing Weapon . | . . . . . . . . . . . . . . Special Melee Weapon . | . . . . . . . . . . . . . . Unidentified Prototypes 21 | . . 1 . 11 . . . 2 . . . . 7 Corrupted Parts 2 | . . . . 2 . . . . . . . . . System Corruption 8 | . . . . 8 . . . . . . . . . Parts Lost 41 | . . 4 9 19 1 . . . 1 2 2 1 2 Power 9 | . . 2 2 4 . . . . . . 1 . . Propulsion 10 | . . . 1 5 1 . . . 1 1 . . 1 Utility 14 | . . 1 5 5 . . . . . 1 . 1 1 Weapon 8 | . . 1 1 5 . . . . . . 1 . . Highest Loss Streak 8 | . . 1 8 6 1 . . . 1 2 2 1 1 Average Slot Usage (%) 87 | . 93 93 83 93 78 86 86 85 85 88 84 87 84 Engine 3 | . 14 10 6 3 . . . . . . 1 5 3 Reactor 3 | . . . . . 6 6 6 6 6 11 5 5 5 Treads 3 | . 26 . 1 1 . . . . . . . . . Wheel 11 | . . 22 15 12 12 13 13 13 12 11 11 11 9 Device 18 | . . 13 12 11 20 26 26 26 26 23 23 24 23 Storage 8 | . 14 11 9 7 6 6 6 6 6 11 11 9 9 Processor 8 | . . . 11 27 6 6 6 6 6 5 5 5 5 Protection 9 | . 8 13 7 9 11 13 13 13 12 5 5 5 5 Energy Gun 9 | . . 2 5 12 12 13 12 6 1 11 14 10 14 Energy Cannon 1 | . . 15 6 . . . . . . 5 2 1 2 Ballistic Gun 3 | . 28 3 5 . . . . . . . . . . Launcher 1 | . . . . . . . . 3 5 . . 3 . Naked Turns . | . . . . . . . . . . . . . . Heaviest Build 163 | 10 88 97 118 134 145 134 137 127 150 151 143 145 163 Greatest Support 40 | 40 40 24 40 40 26 26 26 26 26 26 26 26 26 Greatest Overweight (x) 29 | . 9 4 29 9 8 5 5 4 14 7 5 5 10 Average Overweight (x) 4 | . . 3 3 3 4 4 4 4 6 6 4 5 6 Largest Inventory Capacity 25 | 8 25 25 25 25 25 25 25 25 25 25 25 25 25 Average Capacity 23 | 6 14 24 25 25 25 25 25 25 25 25 25 25 25 Most Carried 25 | 1 20 25 25 25 25 25 25 25 25 25 25 25 25 Average Carried 22 | . 9 21 24 23 24 25 25 24 24 22 23 24 24 Final Capacity 25 | 8 25 25 25 25 25 25 25 25 25 25 25 25 25 Final Carried 25 | 1 20 24 25 25 25 25 25 25 24 21 25 25 23 Class Distribution -------------------- 48% | Scavenger-Mutant 32% | Scavenger-Skirmisher 19% | Mutant Dominant Class ---------------- Mutant | -10/Materials Mutant | -9/Materials Scavenger-Mutant | -8/Materials Scavenger-Mutant | -7/Factory Scavenger-Skirmisher | -6/Factory Scavenger-Skirmisher | -6/Lower Caves Scavenger-Skirmisher | -6/Lower Caves Scavenger-Mutant | -6/Zion Scavenger-Mutant | -5/Proximity Caves Scavenger-Skirmisher | -5/Factory Scavenger-Skirmisher | -5/Upper Caves Scavenger-Mutant | -5/Upper Caves Scavenger-Mutant | -5/Warlord Resources | -11 -10 -9 -8 -7 -6 -6 -6 -6 -5 -5 -5 -5 -5 ----------- Run | Scr Mat Mat Mat Fac Fac Low Low Zio Pro Fac Upp Upp War Matter Collected 2566 | 241 177 232 304 852 120 10 80 40 95 30 150 105 130 Remotely . | . . . . . . . . . . . . . . Salvage Created 5931 | . 440 871 1020 1692 517 220 212 . 132 30 529 138 130 Parts 305 | . 38 48 59 95 19 6 8 . 2 4 17 5 4 Haulers Intercepted 7 | . 1 1 2 3 . . . . . . . . . Recyclers Shooed . | . . . . . . . . . . . . . . Parts Field Recycled . | . . . . . . . . . . . . . . Retrieved Matter . | . . . . . . . . . . . . . . Parts Self-Destructed 156 | . . . . . . 7 15 3 1 . 8 4 118 Prevented 35 | . . . . . . . 1 . . . 1 . 33 Kills | -11 -10 -9 -8 -7 -6 -6 -6 -6 -5 -5 -5 -5 -5 ------- Run | Scr Mat Mat Mat Fac Fac Low Low Zio Pro Fac Upp Upp War Combat Hostiles Destroyed 124 | . 12 14 19 37 13 4 6 . 5 . 5 5 4 Melee 2 | . . . . 1 . . . . . . . . 1 Guns 70 | . 12 2 8 21 13 3 3 . . . 2 3 3 Cannons 22 | . . 12 10 . . . . . . . . . . AOE 25 | . . . . 13 . . 3 . 4 . 3 2 . Classes Destroyed 18 | . 4 4 2 3 1 1 . . . . 1 . 2 Worker 4 | . . 1 . 3 . . . . . . . . . Builder 2 | . . . . 2 . . . . . . . . . Hauler 7 | . 1 1 2 3 . . . . . . . . . Recycler 3 | . . 2 . 1 . . . . . . . . . Minesweeper 1 | . . . . . . 1 . . . . . . . Watcher 9 | . 3 2 1 2 . . . . . 1 . . . Swarmer 35 | . 6 . 3 13 4 . 3 . . . 4 2 . Saboteur 1 | . . . . . . . . . . . . . 1 Grunt 48 | . 6 9 11 8 4 4 2 . 4 . . . . Brawler 3 | . . . . . 1 . 1 . . . . . 1 Duelist 2 | . . 1 . . . . . . . . . . 1 Protector 1 | . . . . . . . . . . . . . 1 Sentry 15 | . . 4 2 5 1 . . . 1 . 1 1 . Specialist 4 | . . . 2 2 . . . . . . . . . Hunter 3 | . . . . 2 1 . . . . . . . . Programmer 9 | . . . . 6 1 . . . . . . 2 . Heavy 3 | . . . 1 1 1 . . . . . . . . Savage 3 | . . . . . . . . . . . 3 . . Mutant 1 | . . . . . . . . . . . 1 . . Commander 1 | . . . . . . . . . . . 1 . . Best Kill Streak 6 | . 4 5 4 6 6 2 3 . 4 1 5 2 2 Combat Bots Only 6 | . 4 2 3 5 6 2 3 . 4 . 5 2 2 Max Kills in Single Turn 3 | . 1 2 1 2 2 2 2 . 3 1 3 2 1 Gunslinging 1 | . . . . . 1 1 . . . . . . . Exploded 3 | . . . . 2 . . 2 . 3 . 3 2 . Melee 1 | . . . . 1 . . . . . . . . 1 Uniques/NPCs Destroyed . | . . . . . . . . . . . . . . Combat | -11 -10 -9 -8 -7 -6 -6 -6 -6 -5 -5 -5 -5 -5 -------- Run | Scr Mat Mat Mat Fac Fac Low Low Zio Pro Fac Upp Upp War Damage Taken 8719 | . 305 846 1412 3926 1010 113 62 . 192 129 258 151 315 Core 1288 | . 76 147 198 573 108 18 19 . 14 . 56 . 79 Absorbed by Shields 280 | . . . 105 . . . 9 . 42 . . . 124 Core Remaining (%) 65 | 100 69 63 64 18 . . . . 81 . . . . Volleys Fired 455 | . 53 56 83 119 35 9 6 . 8 2 42 16 26 Largest 3 | . 2 2 2 2 2 2 2 . 2 3 3 3 3 Hottest 290 | . 40 128 124 161 161 161 200 . 161 251 222 261 290 Shots Fired 817 | . 106 112 160 209 66 18 10 . 12 4 48 26 46 Gun 562 | . 106 30 82 188 62 18 8 . 9 2 9 15 33 Cannon 227 | . . 82 78 . 4 . . . . 2 38 10 13 Launcher 28 | . . . . 21 . . 2 . 3 . 1 1 . Special . | . . . . . . . . . . . . . . Kinetic 168 | . 106 19 43 . . . . . . . . . . Thermal 600 | . . 85 117 188 66 18 8 . 9 4 47 25 33 Explosive 28 | . . . . 21 . . 2 . 3 . 1 1 . Electromagnetic 8 | . . 8 . . . . . . . . . . . Entropic 13 | . . . . . . . . . . . . . 13 Robot Hit Streak 41 | . 11 8 15 41 29 28 14 . 11 2 41 25 18 Robot Miss Streak 5 | . 4 3 5 3 3 1 2 . 2 2 1 2 4 Penetration Max . | . . . . . . . . . . . . . . Secondary Targets 6 | . 1 . . 3 1 1 . . . . . . . Max Gunslinging Chain 1 | . 1 . . 1 1 1 . . . . . . . Shots Hit Robots 590 | . 65 71 105 172 57 18 8 . 11 1 41 15 26 Core Hits 325 | . 33 32 43 84 35 12 8 . 22 3 21 15 17 Critical Kills . | . . . . . . . . . . . . . . Critical Parts Destroyed . | . . . . . . . . . . . . . . Critical Strikes 34 | . . . 7 16 4 4 . . . . 2 1 . Burn 33 | . . . 7 15 4 4 . . . . 2 1 . Sever 1 | . . . . 1 . . . . . . . . . Melee Attacks 9 | . . . . 9 . . . . . . . . . Impact . | . . . . . . . . . . . . . . Slashing 9 | . . . . 9 . . . . . . . . . Piercing . | . . . . . . . . . . . . . . Sneak Attacks . | . . . . . . . . . . . . . . Combat Hostiles . | . . . . . . . . . . . . . . Follow-up Attacks . | . . . . . . . . . . . . . . Damage Inflicted 15240 | . 595 1351 1983 4935 1481 498 348 . 868 61 1436 683 1001 Guns 8972 | . 585 324 929 3075 1481 498 135 . 247 30 162 539 967 Cannons 3201 | . . 995 1054 . . . . . . 31 1087 . 34 Explosions 2839 | . . . . 1674 . . 213 . 621 . 187 144 . Melee 170 | . . . . 170 . . . . . . . . . Ramming 58 | . 10 32 . 16 . . . . . . . . . Kinetic 1183 | . 585 136 462 . . . . . . . . . . Thermal 10564 | . . 1045 1521 3154 1481 498 135 . 247 61 1249 539 634 Explosive 2760 | . . . . 1595 . . 213 . 621 . 187 144 . Electromagnetic 138 | . . 138 . . . . . . . . . . . Impact . | . . . . . . . . . . . . . . Slashing 170 | . . . . 170 . . . . . . . . . Piercing . | . . . . . . . . . . . . . . Entropic 367 | . . . . . . . . . . . . . 367 Highest Corruption 9 | . . 2 . 9 . . . . . 1 1 2 4 Average Corruption 1 | . . 2 . 2 . . . . . 1 1 1 2 Corruption Purged . | . . . . . . . . . . . . . . Effects 17 | . . . . 6 . . . . . . 6 3 2 Message Errors 5 | . . . . 1 . . . . . . 2 1 1 Heat Flow Errors 1 | . . . . . . . . . . . . . 1 Energy Discharges 6 | . . . . 4 . . . . . . 1 1 . Data Loss (minor) 4 | . . . . . . . . . . . 3 1 . Data Loss (major) 1 | . . . . 1 . . . . . . . . . Overload Shots . | . . . . . . . . . . . . . . Overflow Damage 177 | . . . 6 92 . . . . . . 47 9 23 Projectiles 76 | . . . 6 . . . . . . . 47 . 23 Explosions 96 | . . . . 87 . . . . . . . 9 . Melee 5 | . . . . 5 . . . . . . . . . Knockbacks 1 | . 1 . . . . . . . . . . . . Impact 1 | . 1 . . . . . . . . . . . . Kinetic . | . . . . . . . . . . . . . . Secondary . | . . . . . . . . . . . . . . Self-Inflicted Damage 32 | . . 15 . 8 . . . . 9 . . . . Shots 1 | . . . . . . . . . 1 . . . . Rammed 8 | . 4 3 . 1 . . . . . . . . . Targets Rammed 8 | . 4 3 . 1 . . . . . . . . . Kicked . | . . . . . . . . . . . . . . Crushed . | . . . . . . . . . . . . . . Highest Temperature 330 | . 12 330 324 176 152 12 30 . 162 90 72 302 225 Average Temperature 67 | . 8 100 89 40 45 5 15 . 111 54 36 141 69 Received Heat Transfer 1844 | . 93 375 309 717 174 54 22 . 55 . 18 18 9 Effects 4 | . . 1 3 . . . . . . . . . . Energy Bleed 1 | . . 1 . . . . . . . . . . . Interference 3 | . . . 3 . . . . . . . . . . Siege Activations . | . . . . . . . . . . . . . . Robots Corrupted . | . . . . . . . . . . . . . . Combat Hostiles . | . . . . . . . . . . . . . . Parts Fried . | . . . . . . . . . . . . . . Impact Corruptions 1 | . . . . 1 . . . . . . . . . Robots Melted 6 | . . . 1 2 . 1 . . 1 . 1 . . Combat Hostiles 5 | . . . 1 2 . 1 . . 1 . . . . Parts Melted 55 | . . 2 4 30 8 4 . . 2 . 3 2 . Heat Transferred 21528 | . . 2109 3404 7006 3007 1204 225 . 460 100 2108 884 1021 Parts Sabotaged 4 | . . . . . . . . . . . . . 4 Parts Stolen . | . . . . . . . . . . . . . . Parts Stripped . | . . . . . . . . . . . . . . Power Chain Reactions . | . . . . . . . . . . . . . . Missiles Intercepted . | . . . . . . . . . . . . . . Alert | -11 -10 -9 -8 -7 -6 -6 -6 -6 -5 -5 -5 -5 -5 ------- Run | Scr Mat Mat Mat Fac Fac Low Low Zio Pro Fac Upp Upp War Peak Influence 635 | . 212 325 481 635 511 . . . . 21 . . . Initial 310 | . . 56 137 218 310 . . . . 12 . . . Average 274 | . 84 203 351 386 327 . . . . 12 . . . Maximum Alert Level 2 | . 1 1 2 2 2 . . . . . . . . Low Security (%) 30 | 100 92 51 9 . 2 . . . . 100 . . . Level 1 51 | . 7 48 50 68 79 . . . . . . . . Level 2 18 | . . . 40 30 17 . . . . . . . . Level 3 . | . . . . . . . . . . . . . . Level 4 . | . . . . . . . . . . . . . . Level 5 . | . . . . . . . . . . . . . . High Security . | . . . . . . . . . . . . . . Max Security . | . . . . . . . . . . . . . . Squads Dispatched 28 | . 2 1 3 16 6 . . . . . . . . Investigation 5 | . 1 . 1 . 3 . . . . . . . . Extermination 6 | . . . . 5 1 . . . . . . . . Reinforcement 13 | . 1 1 2 8 1 . . . . . . . . Assault . | . . . . . . . . . . . . . . Garrison 4 | . . . . 3 1 . . . . . . . . Intercept . | . . . . . . . . . . . . . . Construction Impeded . | . . . . . . . . . . . . . . Haulers Reinforced 2 | . . . . 2 . . . . . . . . . Active Scanning Responses 2 | . . . . . 2 . . . . . . . . Cargo Convoy Interrupts 1 | . . . . 1 . . . . . . . . . Stealth | -11 -10 -9 -8 -7 -6 -6 -6 -6 -5 -5 -5 -5 -5 --------- Run | Scr Mat Mat Mat Fac Fac Low Low Zio Pro Fac Upp Upp War Distress Signals 12 | . 1 3 6 1 . . . . . . . . 1 Communications Jammed . | . . . . . . . . . . . . . . Distress Signals . | . . . . . . . . . . . . . . Times Spotted 171 | . 19 18 29 43 14 5 4 . 5 1 8 3 22 Peak Tracking Total 6 | . 4 3 6 4 4 3 1 . 4 . 5 2 6 Tactical Retreats 8 | . . . 3 1 1 . 1 . . . . . 2 Traps | -11 -10 -9 -8 -7 -6 -6 -6 -6 -5 -5 -5 -5 -5 ------- Run | Scr Mat Mat Mat Fac Fac Low Low Zio Pro Fac Upp Upp War Traps Triggered 8 | . 2 1 . 3 1 . . . . 1 . . . Indirectly . | . . . . . . . . . . . . . . Trap Hack Attempts . | . . . . . . . . . . . . . . Triggered . | . . . . . . . . . . . . . . Disarmed . | . . . . . . . . . . . . . . Reprogrammed . | . . . . . . . . . . . . . . Reused . | . . . . . . . . . . . . . . Traps Extracted . | . . . . . . . . . . . . . . Installed . | . . . . . . . . . . . . . . Triggered 25 | . . . . 1 . . 3 . . . . . 21 Machines | -11 -10 -9 -8 -7 -6 -6 -6 -6 -5 -5 -5 -5 -5 ---------- Run | Scr Mat Mat Mat Fac Fac Low Low Zio Pro Fac Upp Upp War Machines Disabled 4 | . . 1 . 2 . . . . . . . . 1 Max in Single Turn 1 | . . 1 . 1 . . . . . . . . 1 Garrison Access 1 | . . . . . . . . . . 1 . . . Machines Sabotaged . | . . . . . . . . . . . . . . Garrisons Compromised 1 | . . . . 1 . . . . . . . . . Overloaded Fab Kills . | . . . . . . . . . . . . . . Hacking | -11 -10 -9 -8 -7 -6 -6 -6 -6 -5 -5 -5 -5 -5 --------- Run | Scr Mat Mat Mat Fac Fac Low Low Zio Pro Fac Upp Upp War Machines Accessed 28 | . 7 4 2 6 5 . . . . 2 . . 2 Terminals 13 | . 7 3 . 1 2 . . . . . . . . Fabricators 9 | . . . . 5 3 . . . . 1 . . . Repair Stations . | . . . . . . . . . . . . . . Recycling Units 2 | . . . 2 . . . . . . . . . . Scanalyzers 1 | . . 1 . . . . . . . . . . . Garrison Access 1 | . . . . . . . . . . 1 . . . Total Hacks 77 | . 27 10 5 16 9 . . . . 5 . . 5 Successful 38 | . 16 6 2 4 3 . . . . 2 . . 5 Failed 38 | . 10 4 3 12 6 . . . . 3 . . . Catastrophic 10 | . 1 1 . 4 3 . . . . 1 . . . Database Lockouts 1 | . 1 . . . . . . . . . . . . Manual 51 | . 20 8 1 10 9 . . . . 2 . . 1 Terminals 44 | . 27 8 . 4 5 . . . . . . . . Fabricators 19 | . . . . 12 4 . . . . 3 . . . Repair Stations . | . . . . . . . . . . . . . . Recycling Units 5 | . . . 5 . . . . . . . . . . Scanalyzers 2 | . . 2 . . . . . . . . . . . Garrison Access 2 | . . . . . . . . . . 2 . . . Terminal Hacks 18 | . 9 2 . 1 1 . . . . . . . 5 Record 4 | . . . . . . . . . . . . . 4 Part Schematic 1 | . 1 . . . . . . . . . . . . Robot Analysis 4 | . 4 . . . . . . . . . . . . Prototype ID Bank 4 | . 2 1 . 1 . . . . . . . . . Open Door 1 | . . . . . . . . . . . . . 1 Terminal Index 4 | . 2 1 . . 1 . . . . . . . . Fabricator Hacks 3 | . . . . 2 1 . . . . . . . . Network Status 2 | . . . . 1 1 . . . . . . . . Build 1 | . . . . 1 . . . . . . . . . Repair Station Hacks . | . . . . . . . . . . . . . . Recycling Unit Hacks 1 | . . . 1 . . . . . . . . . . Retrieve Components 1 | . . . 1 . . . . . . . . . . Scanalyzer 2 | . . 2 . . . . . . . . . . . Insert Component 1 | . . 1 . . . . . . . . . . . Analyze 1 | . . 1 . . . . . . . . . . . Garrison Access Hacks 1 | . . . . . . . . . . 1 . . . Seal Access 1 | . . . . . . . . . . 1 . . . Unauthorized Hacks 13 | . 7 2 1 1 1 . . . . 1 . . . Terminals 10 | . 7 2 . . 1 . . . . . . . . Assimilate 4 | . 3 . . . 1 . . . . . . . . Botnet 5 | . 3 2 . . . . . . . . . . . Operators 1 | . 1 . . . . . . . . . . . . Fabricators 2 | . . . . 1 . . . . . 1 . . . Fabnet 2 | . . . . 1 . . . . . 1 . . . Repair Stations . | . . . . . . . . . . . . . . Recycling Units 1 | . . . 1 . . . . . . . . . . Recyclers 1 | . . . 1 . . . . . . . . . . Scanalyzers . | . . . . . . . . . . . . . . Garrison Access . | . . . . . . . . . . . . . . Data Cores Recovered . | . . . . . . . . . . . . . . Used . | . . . . . . . . . . . . . . Hacking Detections 22 | . 6 4 1 6 4 . . . . 1 . . . Full Trace Events 3 | . 1 . 1 . 1 . . . . . . . . Feedback Events . | . . . . . . . . . . . . . . Feedback Blocked . | . . . . . . . . . . . . . . Robot Schematics Acquired . | . . . . . . . . . . . . . . Robots Built . | . . . . . . . . . . . . . . Authchips . | . . . . . . . . . . . . . . Time . | . . . . . . . . . . . . . . Total Robot Build Rating . | . . . . . . . . . . . . . . Part Schematics Acquired 2 | . 1 1 . . . . . . . . . . . Parts Built 1 | . . . . 1 . . . . . . . . . Authchips . | . . . . . . . . . . . . . . Time 117 | . . . . 117 . . . . . . . . . Total Part Build Rating 7 | . . . . 7 . . . . . . . . . Parts Repaired . | . . . . . . . . . . . . . . Time . | . . . . . . . . . . . . . . Parts Recycled . | . . . . . . . . . . . . . . Recycled Matter . | . . . . . . . . . . . . . . Retrieved Matter . | . . . . . . . . . . . . . . Retrieved Components 2 | . . . 2 . . . . . . . . . . Parts Scanalyzed 1 | . . 1 . . . . . . . . . . . Part Schematics Acquired 1 | . . 1 . . . . . . . . . . . Parts Damaged . | . . . . . . . . . . . . . . Bothacking | -11 -10 -9 -8 -7 -6 -6 -6 -6 -5 -5 -5 -5 -5 ------------ Run | Scr Mat Mat Mat Fac Fac Low Low Zio Pro Fac Upp Upp War Used RIF Installer . | . . . . . . . . . . . . . . Robots Hacked 3 | . . . . . . . 1 . . . . . 2 Non-combat . | . . . . . . . . . . . . . . Combat 3 | . . . . . . . 1 . . . . . 2 Robot Hacks Applied . | . . . . . . . . . . . . . . Relay Couplers Released 7 | . . . . 7 . . . . . . . . . Programmers 7 | . . . . 7 . . . . . . . . . Fabnet Peak Effective % 3 | . . . . . 3 3 3 3 1 1 1 1 1 Autooverrided 3 | . . . . . . . 1 . . . . . 2 Robots Rewired 5 | . . . . . . . . . . . . . 5 Allies Hacked . | . . . . . . . . . . . . . . Hacks Repelled . | . . . . . . . . . . . . . . Allies | -11 -10 -9 -8 -7 -6 -6 -6 -6 -5 -5 -5 -5 -5 -------- Run | Scr Mat Mat Mat Fac Fac Low Low Zio Pro Fac Upp Upp War Total Allies 11 | . 1 . . . . . 1 . . . . . 9 Largest Group 5 | . 1 1 1 . . . 1 . . . . . 5 Highest-Rated Group 229 | . 10 10 10 . . . 29 . . . . . 229 Highest-Rated Ally 95 | . 10 10 10 . . . 29 . . . . . 95 Total Orders 9 | . . 8 . . . . . . . . . . 1 STAY 5 | . . 4 . . . . . . . . . . 1 FOLLOW 4 | . . 4 . . . . . . . . . . . Ally Attacks 63 | . . . . . . . 6 . . . . . 57 Total Damage 1911 | . . . . . . . 95 . . . . . 1816 Kills 15 | . . . . . . . 1 . . . . . 14 Allies Corrupted . | . . . . . . . . . . . . . . Allies Melted . | . . . . . . . . . . . . . . Intel | -11 -10 -9 -8 -7 -6 -6 -6 -6 -5 -5 -5 -5 -5 ------- Run | Scr Mat Mat Mat Fac Fac Low Low Zio Pro Fac Upp Upp War Robot Analysis Total 4 | . 4 . . . . . . . . . . . . Derelict Logs Recovered 10 | . . . . . . 3 1 2 1 . 2 1 . Drone Launches . | . . . . . . . . . . . . . . Drone Recoveries . | . . . . . . . . . . . . . . Exploration | -11 -10 -9 -8 -7 -6 -6 -6 -6 -5 -5 -5 -5 -5 ------------- Run | Scr Mat Mat Mat Fac Fac Low Low Zio Pro Fac Upp Upp War Turns Passed 15221 | 82 1541 632 783 2359 1319 925 1180 1195 1044 139 1140 1677 1205 Spaces Moved 7785 | 47 800 266 273 1151 674 580 626 734 505 68 612 909 540 Core 6 | 2 3 . 1 . . . . . . . . . . Treads 826 | 45 769 . 4 8 . . . . . . . . . Legs . | . . . . . . . . . . . . . . Wheels 6953 | . 28 266 268 1143 674 580 626 734 505 68 612 909 540 Hover . | . . . . . . . . . . . . . . Flight . | . . . . . . . . . . . . . . Fastest Speed 50 | 50 105 135 135 135 150 150 150 150 150 165 150 165 165 Average Speed 160 | 155 160 139 158 153 163 153 161 150 172 178 155 165 184 Slowest Speed 1500 | 160 500 150 1500 330 220 165 165 150 290 185 165 165 250 Overloaded Moves . | . . . . . . . . . . . . . . Propulsion Burnouts . | . . . . . . . . . . . . . . Robots Hopped . | . . . . . . . . . . . . . . Cave-ins Triggered . | . . . . . . . . . . . . . . Exploration Rate (%) 52 | 4 96 25 32 33 23 83 74 72 72 3 64 78 75 Regions Visited 13 Branch Regions 7 Pre-discovered Areas . | . . . . . . . . . . . . . . Known Exits Taken 9 | . . . . 1 1 1 1 1 1 1 1 1 . Unknown Exits Taken 4 | 1 1 1 1 . . . . . . . . . . Scrap Searched 12 | . . . . . . 2 . 3 1 . 2 4 . Spaces Dug 36 | . . . . 1 3 . 5 . . 1 4 10 12 Terrain Destroyed 232 | . . . . 100 4 . 12 . 55 1 34 10 16 Melee 1 | . . . . 1 . . . . . . . . . Projectile 35 | . . . . . 4 . . . . 1 4 10 16 AOE 196 | . . . . 99 . . 12 . 55 . 30 . . Terrain Rammed . | . . . . . . . . . . . . . . Walls Destroyed . | . . . . . . . . . . . . . . Machines Disabled . | . . . . . . . . . . . . . . Actions | -11 -10 -9 -8 -7 -6 -6 -6 -6 -5 -5 -5 -5 -5 --------- Run | Scr Mat Mat Mat Fac Fac Low Low Zio Pro Fac Upp Upp War Total 9748 | 53 975 423 486 1533 817 597 780 831 656 83 750 1058 706 Wait 910 | . 66 44 72 53 89 6 144 79 134 5 83 123 12 Move 7772 | 46 799 265 272 1150 673 579 625 733 504 67 611 908 540 Hop . | . . . . . . . . . . . . . . Pick Up 156 | 1 29 22 20 59 6 1 . 6 . 1 6 2 3 Fast Attach 61 | 6 5 7 11 18 1 . . 3 . . 1 . 9 Attach 64 | . 1 5 5 37 4 . . . 1 6 2 1 2 Detach 21 | . . . 2 14 . . . . . 2 . . 3 Swap 65 | . 3 2 4 20 6 1 5 1 9 . 4 7 3 Drop 130 | . 15 19 17 53 3 1 . 9 . . 1 1 11 Fire 455 | . 53 56 83 119 35 9 6 . 8 2 42 16 26 Melee 9 | . . . . 9 . . . . . . . . . Ram 4 | . . 3 . 1 . . . . . . . . . Kick . | . . . . . . . . . . . . . . Crush 4 | . 4 . . . . . . . . . . . . Escape Stasis . | . . . . . . . . . . . . . . Rewire 97 | . . . . . . . . . . . . . 97 Trap . | . . . . . . . . . . . . . . Miscellaneous . | . . . . . . . . . . . . . . Route ------- -11/Scrapyard -10/Materials (discovered 4 exits: *Mat x3 / [*Min]) -9/Materials (discovered 2 exits: *Mat / [*Sto]) -8/Materials -7/Factory (discovered 3 exits: *Fac x3) -6/Factory (discovered 2 exits: *Fac / *Low) -6/Lower Caves -6/Lower Caves -6/Zion -5/Proximity Caves -5/Factory -5/Upper Caves -5/Upper Caves (discovered 2 exits: *Fac / *War) -5/Warlord (discovered 1 exit: [*Pro]) History --------- Turn | Location | Event 20 | -11/Scrapyard | Discovered new exit (range 16) 83 | -11/Scrapyard | Entered Materials 259 | -10/Materials | Discovered new exit (range 7) 317 | -10/Materials | Build established: Mutant 591 | -10/Materials | Discovered new exit (range 12) 760 | -10/Materials | Central database locked down 1117 | -10/Materials | Discovered new exit (range 16) 1539 | -10/Materials | Discovered new exit (range 16) 1624 | -10/Materials | Entered another Materials area 1624 | -9/Materials | Accompanied by 1 ally 1624 | -9/Materials | Evolved 2 slots: Utility x2 2175 | -9/Materials | Discovered new exit (range 12) 2195 | -9/Materials | Discovered new exit (range 15) 2256 | -9/Materials | Entered another Materials area 2256 | -8/Materials | Accompanied by 1 ally 2256 | -8/Materials | Evolved 2 slots: Utility x2 2273 | -8/Materials | Build established: Scavenger-Mutant 2539 | -8/Materials | Lost 8 parts (2p1n4u1w) 3010 | -8/Materials | Discovered new exit (range 3) 3039 | -8/Materials | Entered Factory 3039 | -7/Factory | Evolved 2 slots: Utility x2 3301 | -7/Factory | Garrison activated, responded to threat 3423 | -7/Factory | Discovered new exit (range 19) 3494 | -7/Factory | Lost 4 parts (1p1n1u1w) 3545 | -7/Factory | Identified exit to Factory 3705 | -7/Factory | Discovered exit to Factory (range 9) 3927 | -7/Factory | Lost 6 parts (1p1n2u2w) 4348 | -7/Factory | Core integrity fell below 50% 4799 | -7/Factory | Cargo convoy interrupted 4997 | -7/Factory | Lost 4 parts (1p1u2w) 5108 | -7/Factory | Fabricated Adv. Target Analyzer? 5186 | -7/Factory | Core integrity fell below 20% 5273 | -7/Factory | Found Prototype Device 5293 | -7/Factory | Discovered exit to Factory (range 5) 5325 | -7/Factory | Identified Active Sensor Suite 5398 | -7/Factory | Entered another Factory area 5398 | -6/Factory | Evolved 2 slots: Utility x2 5605 | -6/Factory | Build established: Scavenger-Skirmisher 6332 | -6/Factory | Discovered new exit (range 8) 6342 | -6/Factory | Identified exit to Factory 6555 | -6/Factory | Garrison activated, responded to threat 6680 | -6/Factory | Discovered new exit (range 16) 6713 | -6/Factory | Identified exit to Lower Caves 6717 | -6/Factory | Entered Lower Caves 6723 | -6/Lower Caves | Encountered a Warlord checkpoint 6966 | -6/Lower Caves | Learned Factory garrison access intel 6973 | -6/Lower Caves | Learned Factory security intel 7537 | -6/Lower Caves | Discovered new exit (range 6) 7546 | -6/Lower Caves | Identified exit to Lower Caves 7642 | -6/Lower Caves | Entered another Lower Caves area 8806 | -6/Lower Caves | Discovered new exit (range 10) 8819 | -6/Lower Caves | Identified exit to Zion 8822 | -6/Lower Caves | Entered Zion 8936 | -6/Zion | Discovered new exit (range 10) 8950 | -6/Zion | Identified exit to Proximity Caves 8971 | -6/Zion | Build established: Scavenger-Mutant 9277 | -6/Zion | Learned Factory interactive machine intel 9289 | -6/Zion | Learned Factory stockpile data 9434 | -6/Zion | Found Prototype Launcher 9434 | -6/Zion | Identified Rocket Array 9547 | -6/Zion | Given A8's code to call for help 9602 | -6/Zion | Found Prototype Special Weapon 9602 | -6/Zion | Identified RU-N14's Throwing Claymores 9606 | -6/Zion | Found RU-N14's Throwing Claymores 9611 | -6/Zion | Found RU-N14's Throwing Claymores 9613 | -6/Zion | Found RU-N14's Throwing Claymores 10017 | -6/Zion | Entered Proximity Caves 10366 | -5/Proximity Caves | Learned Factory terminal intel 10804 | -5/Proximity Caves | Received a Behemoth hack from an annoying Tinkerer 11001 | -5/Proximity Caves | Discovered exit to Factory (range 10) 11027 | -5/Proximity Caves | Attracted the attention of an 0b10 checkpoint 11061 | -5/Proximity Caves | Entered Factory 11061 | -5/Factory | Evolved 2 slots: Power x1, Weapon x1 11062 | -5/Factory | Identified exit to Upper Caves 11065 | -5/Factory | Loaded intel: 52 interactive machine locations 11066 | -5/Factory | Loaded intel: 26 terminal locations 11067 | -5/Factory | Loaded intel: 4 garrison access locations 11200 | -5/Factory | Entered Upper Caves 11202 | -5/Upper Caves | Attracted the attention of an 0b10 checkpoint 11493 | -5/Upper Caves | Build established: Scavenger-Skirmisher 11906 | -5/Upper Caves | Identified exit to Upper Caves 11975 | -5/Upper Caves | Destroyed R6-RAB(g) 12081 | -5/Upper Caves | Learned location of 2 exits from Factory 12155 | -5/Upper Caves | Build established: Scavenger-Mutant 12340 | -5/Upper Caves | Entered another Upper Caves area 12502 | -5/Upper Caves | Discovered new exit (range 15) 12524 | -5/Upper Caves | Identified exit to Factory 13485 | -5/Upper Caves | Attracted the attention of an 0b10 checkpoint 13799 | -5/Upper Caves | Build established: Scavenger-Skirmisher 13962 | -5/Upper Caves | Discovered new exit (range 6) 13970 | -5/Upper Caves | Identified exit to Warlord 13978 | -5/Upper Caves | Learned Factory stockpile data 14017 | -5/Upper Caves | Entered Warlord 14070 | -5/Warlord | Discovered new exit (range 15) 14113 | -5/Warlord | System corruption cleaned by Quarantine Array 14286 | -5/Warlord | Visited the Vortex Lab 14288 | -5/Warlord | Warlord's base attacked by MAIN.C 14300 | -5/Warlord | Found Prototype Energy Gun 14300 | -5/Warlord | Identified Vortex Rifle 14306 | -5/Warlord | Found Vortex Rifle 14638 | -5/Warlord | Warlord forces counterattacked 14653 | -5/Warlord | Met Warlord 14678 | -5/Warlord | Build established: Scavenger-Mutant 14924 | -5/Warlord | Enhanced Grunt warped into view, answering call for help 14925 | -5/Warlord | Enhanced Grunt warped into view, answering call for help 14934 | -5/Warlord | Found Prototype Processor 14934 | -5/Warlord | Identified Exp. Core Analyzer 14941 | -5/Warlord | Found Prototype Hackware 14941 | -5/Warlord | Identified Ghost Barrier 14950 | -5/Warlord | Found Prototype Device 14950 | -5/Warlord | Identified Exp. Cloaking Device 14958 | -5/Warlord | Found Prototype Reactor 14958 | -5/Warlord | Identified Vortex Chain Reactor 14963 | -5/Warlord | Warlord base infiltrated, sounded retreat 15060 | -5/Warlord | Spotted B-75 Beast 15082 | -5/Warlord | Spotted Striker 15096 | -5/Warlord | Spotted Striker 15107 | -5/Warlord | Allies destroyed Striker 15114 | -5/Warlord | Allies destroyed XU-A0G(K) 15200 | -5/Warlord | Spotted B-75 Beast 15207 | -5/Warlord | Spotted Striker 15222 | -5/Warlord | Self-destructed Last Messages --------------- 15188_ ANNOUNCEMENT: Detected 2 Melee squads, 2 Grunt squads, with prototype support. 15194_ The unstable cave ceiling collapses. 15202_ Adv. Cooling System blown off. 15202_ Hvy. Gatling Laser blown off. 15202_ E-15 Imp destroyed. 15206_ Hvy. Gatling Laser blown off. 15206_ Vortex Rifle blown off. 15206_ E-15 Imp destroyed. 15207_ Acquired Hvy. Gatling Laser. 15211_ Cesium-ion Thruster fries itself beyond repair. 15214_ Knocked back. 15215_ Cesium-ion Thruster fries itself beyond repair. 15216_ Knocked back. 15217_ Acquired 15 matter. 15217_ Segregator fries itself beyond repair. 15217_ Knocked back. 15218_ Acquired 5 matter. 15221_ Propulsion Shielding fries itself beyond repair. 15222_ Cesium-ion Thruster fries itself beyond repair. Map ----- +----------------------------------------------------+ | ???????# #????????????????????????????????? | | #?###?## # #????????????????????????????????? | | ### ### # #####?????????????????????????????? | | ^ #?????????????????????????????? | | #?????????????????????????????? | | ^ #?????????????????????????????? | | ^ #?????????????????????????????? | | ###???????????????????????????? | | #####"##"#########%!%##########??????????????????? | | ##############???# ## #??????????????????? | | # X#[**!==#???# ## #??? ?????????????? | | # #???# ## #?? ?????????????? | | # " #???# ## #? " ???????????? | | # " #???# ## #? " ???????????? | | # # ! ! #?### ## # ???????????? | | # #########?# # ## # ??????????? | | # """"""""#?# # ???????????? | | # "#?# # ### ??????????? | | # "#?# !% g% % ??????????? | | "#?# / % ?# #???????????? | | ""###### ### ##% ## ## ?##=????????? | | "## ##/% # # #????????? | | # "## # B g #????????? | | # "## #BB l#?############ | | #""""""""""""## ##Kg l#?# | | ############### E #@% ![ #?# | | #####??????# # % ###;#;#######?# | | ####???# # BB ### ## #??????# | | # # #???# ##% BB ! #?##########??# | | # # #= # # #%##!# #??# | | =%*%% !=%%=*# #??# | | * % %%%!=% =%%%![%[[+% [%!! ########+####+# | | # [%%% %%!%="""#]#!%*!###!*!!!%=%#K | | =! # # #### ![[#%# =[%%+s s | | ## ####???#" X"# # ! # s """"" | | ####????????#" X"## # # """"" | | #???????????#" X"#?## ###### """"" | | #???????????#""""#??# #????# | | #??????????#""""???##########????# | | ##???????????####???????##????????# | | #???????????????????????# ####????# | | ## #????????????????????????#"#"#????### | | # ##???????????????????????""" #???????# | | ? #????????????????????????"!" #???????# | | ###?##???????????????????????#" " #???????# """"" | | ?????????????????????????????# #???????# """"" | | ?????????????????????????????# #???????# """"" | | ?????????????????????????????## ###???????# | | ??????????????????????###???###+###???????# | | ?????????##############X##### #??????####+#### | +----------------------------------------------------+ Best States ------------- Heat Dissipation 72 Energy Generation 55 Energy Capacity 1050 Matter Stores 300 Matter Capacity 300 Sight Range 22 Robot Scan Range 20 Terrain Scan Density 10 EM Shielding 2 Armor Coverage 600 Resistance: TH 25 Power Shielding 33 Propulsion Shielding 66 Utility Shielding 66 Weapon Shielding 66 Phase Shifting 5 Evasion (%) 45 Targeting Accuracy 16 Target Analysis 8 Core Analysis 6 Recoil Reduction 2 Matter Filtering 50 Item Schematics ----------------- Huge Storage Unit | -10/Materials | Hacked Hcp. Storage Unit | -9/Materials | Scanalyzed Robot Schematics ------------------ None Fabricated ------------ Adv. Target Analyzer | x1 | -7/Factory | Preloaded Alien Tech Used ----------------- None Achievements -------------- None Challenges ------------ None Game ------ Seed BackupSeismicWings Manual? 0 Play Time 01:26:44 Cumulative 157.3 hours Start 2022.02.15 @ 14:44:41 End 2022.02.15 @ 20:36:16 Sessions 5 Manual Loads 0 Difficulty Rogue Special Mode None Game No. 260 Rogue 243 Adventurer 4 Explorer 13 Win Type - Total 8 Types 6/0/0/2/0/0/0/0/0 Lore% 65 Gallery% 83 Achievement% 68 Wizard Run 0 Options --------- ASCII 0 Keyboard 1 Movement Numpad Keybinds 0 Fullscreen 1 Font 18/SmallcapsGlow Map View 76x50 Tactical HUD 1 Map Filters NONE Filters NONE Steam 1 RUN: 8e923ff9-e646-4d64-a099-7a6321bded74